[Event "*** Titled Tuesday Blitz"]
[Site "Chess.com"]
[Date "2021.03.02"]
[Round "2"]
[White "Sergey85Rodchenkov"]
[Black "lelya96"]
[Result "1-0"]
[WhiteElo "2466"]
[BlackElo "2262"]
[TimeControl "180+1"]
[EndTime "10:17:43 PST"]
[Termination "Sergey85Rodchenkov won by resignation"]

1. e4 {[%clk 0:03:00.9]} 1... e5 {[%clk 0:02:57.3]} 2. Nf3 {[%clk 0:03:00.3]}
2... Nc6 {[%clk 0:02:56.9]} 3. Bc4 {[%clk 0:03:00.1]} 3... Nf6 {[%clk
0:02:55.9]} 4. d3 {[%clk 0:03:00.3]} 4... Be7 {[%clk 0:02:54.7]} 5. O-O {[%clk
0:03:00]} 5... O-O {[%clk 0:02:54.2]} 6. Re1 {[%clk 0:03:00.1]} 6... d6 {[%clk
0:02:53.4]} 7. c3 {[%clk 0:03:00.3]} 7... h6 {[%clk 0:02:51.1]} 8. Nbd2 {[%clk
0:02:59.8]} 8... Nh7 {[%clk 0:02:50.3]} 9. Nf1 {[%clk 0:02:59.2]} 9... Ng5
{[%clk 0:02:50.1]} 10. Bxg5 {[%clk 0:02:56.8]} 10... Bxg5 {[%clk 0:02:49.8]} 11.
Ng3 {[%clk 0:02:57.3]} 11... Kh8 {[%clk 0:02:46.8]} 12. d4 {[%clk 0:02:57]}
12... Bg4 {[%clk 0:02:33]} 13. dxe5 {[%clk 0:02:45.6]} 13... Nxe5 {[%clk
0:02:27.8]} 14. Be2 {[%clk 0:02:45.5]} 14... Nxf3+ {[%clk 0:01:55.4]} 15. Bxf3
{[%clk 0:02:45.1]} 15... Bxf3 {[%clk 0:01:48.1]} 16. Qxf3 {[%clk 0:02:44.3]}
16... g6 {[%clk 0:01:48]} 17. Rad1 {[%clk 0:02:41.3]} 17... Qf6 {[%clk
0:01:46.4]} 18. Qd3 {[%clk 0:02:38.4]} 18... Rfe8 {[%clk 0:01:44.6]} 19. Ne2
{[%clk 0:02:32.2]} 19... Qg7 {[%clk 0:01:34.7]} 20. Nd4 {[%clk 0:02:28.4]} 20...
a6 {[%clk 0:01:33.1]} 21. Qc4 {[%clk 0:02:24.8]} 21... Re7 {[%clk 0:01:32.4]}
22. Qb3 {[%clk 0:02:19.1]} 22... Rae8 {[%clk 0:01:23.6]} 23. f3 {[%clk
0:02:10.8]} 23... Bf6 {[%clk 0:01:17.3]} 24. Nc2 {[%clk 0:02:06.8]} 24... b5
{[%clk 0:01:11.7]} 25. a4 {[%clk 0:02:03.2]} 25... Re5 {[%clk 0:00:50]} 26. g3
{[%clk 0:01:59.7]} 26... Qf8 {[%clk 0:00:43.2]} 27. Ne3 {[%clk 0:01:53.1]} 27...
h5 {[%clk 0:00:32.2]} 28. Nd5 {[%clk 0:01:50.2]} 28... Bg7 {[%clk 0:00:23.8]}
29. axb5 {[%clk 0:01:49.3]} 29... axb5 {[%clk 0:00:22.9]} 30. Qxb5 {[%clk
0:01:48.8]} 30... Rb8 {[%clk 0:00:19.9]} 31. Qe2 {[%clk 0:01:48.7]} 31... c6
{[%clk 0:00:19.3]} 32. Nf4 {[%clk 0:01:43.7]} 32... d5 {[%clk 0:00:19.6]} 33.
Kg2 {[%clk 0:01:39.9]} 33... dxe4 {[%clk 0:00:19.7]} 34. fxe4 {[%clk 0:01:39.8]}
34... Rbe8 {[%clk 0:00:19]} 35. Qf3 {[%clk 0:01:35.3]} 35... Qc5 {[%clk
0:00:18.7]} 36. Re2 {[%clk 0:01:32.5]} 36... Qc4 {[%clk 0:00:18.7]} 37. Rde1
{[%clk 0:01:31.8]} 37... Bh6 {[%clk 0:00:17.9]} 38. Nd3 {[%clk 0:01:28.2]} 38...
R5e6 {[%clk 0:00:17.8]} 39. e5 {[%clk 0:01:28.2]} 39... Kg8 {[%clk 0:00:17]} 40.
Re4 {[%clk 0:01:28.1]} 40... Qd5 {[%clk 0:00:16.5]} 41. Rd4 {[%clk 0:01:27.1]}
41... Qxf3+ {[%clk 0:00:16.4]} 42. Kxf3 {[%clk 0:01:27.7]} 42... Bg7 {[%clk
0:00:16.8]} 43. Rde4 {[%clk 0:01:27]} 43... Rb8 {[%clk 0:00:16.2]} 44. b4 {[%clk
0:01:26.3]} 44... Bf8 {[%clk 0:00:16.4]} 45. Nf4 {[%clk 0:01:25.5]} 45... Ree8
{[%clk 0:00:16]} 46. e6 {[%clk 0:01:25.8]} 46... f5 {[%clk 0:00:12.5]} 47. Rc4
{[%clk 0:01:25]} 47... Rbc8 {[%clk 0:00:06.7]} 48. Nxg6 {[%clk 0:01:24.1]} 48...
Bd6 {[%clk 0:00:06.9]} 49. Nf4 {[%clk 0:01:21]} 49... Bxf4 {[%clk 0:00:07.1]}
50. Kxf4 {[%clk 0:01:21.2]} 50... Kg7 {[%clk 0:00:08]} 51. Kxf5 {[%clk
0:01:21.1]} 51... Rf8+ {[%clk 0:00:08]} 52. Ke5 {[%clk 0:01:21.3]} 52... Kg6
{[%clk 0:00:07.2]} 53. Rf4 {[%clk 0:01:20.4]} 53... Rfe8 {[%clk 0:00:07.3]} 54.
Ref1 {[%clk 0:01:19.1]} 54... c5 {[%clk 0:00:07]} 55. b5 {[%clk 0:01:18.7]}
55... Rb8 {[%clk 0:00:07.4]} 56. c4 {[%clk 0:01:17.7]} 56... Rb6 {[%clk
0:00:07.7]} 57. Rf6+ {[%clk 0:01:17.5]} 57... Kg5 {[%clk 0:00:08.2]} 58. h3
{[%clk 0:01:14.8]} 1-0

[Event "*** Titled Tuesday Blitz"]
[Site "Chess.com"]
[Date "2021.03.02"]
[Round "2"]
[White "Ginger_GM"]
[Black "MateusViageiro"]
[Result "1-0"]
[WhiteElo "2631"]
[BlackElo "2333"]
[TimeControl "180+1"]
[EndTime "10:17:45 PST"]
[Termination "Ginger_GM won on time"]

1. d4 {[%clk 0:02:58.1]} 1... Nf6 {[%clk 0:02:59.4]} 2. c4 {[%clk 0:02:57.5]}
2... e6 {[%clk 0:02:57.9]} 3. Nf3 {[%clk 0:02:57.5]} 3... Bb4+ {[%clk
0:02:56.7]} 4. Nbd2 {[%clk 0:02:57.1]} 4... O-O {[%clk 0:02:55.9]} 5. a3 {[%clk
0:02:57]} 5... Bxd2+ {[%clk 0:02:53.2]} 6. Bxd2 {[%clk 0:02:57.1]} 6... d5
{[%clk 0:02:52.5]} 7. Bg5 {[%clk 0:02:56.4]} 7... Nbd7 {[%clk 0:02:51.8]} 8. e3
{[%clk 0:02:56.2]} 8... b6 {[%clk 0:02:51.4]} 9. cxd5 {[%clk 0:02:54.5]} 9...
exd5 {[%clk 0:02:51]} 10. Bd3 {[%clk 0:02:54.6]} 10... h6 {[%clk 0:02:50.7]} 11.
Bh4 {[%clk 0:02:54.4]} 11... Bb7 {[%clk 0:02:48.8]} 12. O-O {[%clk 0:02:53.4]}
12... c5 {[%clk 0:02:45]} 13. Ne5 {[%clk 0:02:53.1]} 13... Qc7 {[%clk
0:02:36.7]} 14. Bg3 {[%clk 0:02:44.1]} 14... Qd8 {[%clk 0:02:36]} 15. Rc1 {[%clk
0:02:36.6]} 15... c4 {[%clk 0:02:32.9]} 16. Bb1 {[%clk 0:02:36.6]} 16... b5
{[%clk 0:02:26.6]} 17. Qc2 {[%clk 0:02:33.8]} 17... Re8 {[%clk 0:02:07.5]} 18.
Bh4 {[%clk 0:02:30.6]} 18... Nxe5 {[%clk 0:02:03.5]} 19. dxe5 {[%clk 0:02:28.1]}
19... Rxe5 {[%clk 0:02:00.8]} 20. Rce1 {[%clk 0:02:04.4]} 20... a5 {[%clk
0:01:19.1]} 21. f4 {[%clk 0:02:01.9]} 21... Re4 {[%clk 0:01:01.4]} 22. Qf2
{[%clk 0:01:43]} 22... Re6 {[%clk 0:00:46.6]} 23. Bf5 {[%clk 0:01:38]} 23... Rd6
{[%clk 0:00:41.2]} 24. g4 {[%clk 0:01:25.7]} 24... Qb6 {[%clk 0:00:37.3]} 25. g5
{[%clk 0:01:20.4]} 25... Ne4 {[%clk 0:00:36.1]} 26. Qg2 {[%clk 0:01:14.3]} 26...
hxg5 {[%clk 0:00:34.7]} 27. fxg5 {[%clk 0:01:12.8]} 27... g6 {[%clk 0:00:30.7]}
28. Bxe4 {[%clk 0:01:09.9]} 28... dxe4 {[%clk 0:00:30.2]} 29. Bg3 {[%clk
0:01:05.7]} 29... Rd5 {[%clk 0:00:20.5]} 30. Rf6 {[%clk 0:01:01.2]} 30... Qd8
{[%clk 0:00:14.2]} 31. Ref1 {[%clk 0:00:45]} 31... Rxg5 {[%clk 0:00:10.9]} 32.
Rxf7 {[%clk 0:00:44]} 32... Bd5 {[%clk 0:00:09.7]} 33. R7f6 {[%clk 0:00:32.3]}
33... b4 {[%clk 0:00:08.6]} 34. Qh3 {[%clk 0:00:28.6]} 34... c3 {[%clk
0:00:05.7]} 35. Qh6 {[%clk 0:00:27.7]} 1-0

[Event "*** Titled Tuesday Blitz"]
[Site "Chess.com"]
[Date "2021.03.02"]
[Round "2"]
[White "pirulillo"]
[Black "zmeeed67"]
[Result "1-0"]
[WhiteElo "2242"]
[BlackElo "2430"]
[TimeControl "180+1"]
[EndTime "10:17:47 PST"]
[Termination "pirulillo won on time"]

1. e4 {[%clk 0:03:00.9]} 1... c5 {[%clk 0:03:00.1]} 2. Nf3 {[%clk 0:02:59.7]}
2... e6 {[%clk 0:03:00.5]} 3. d3 {[%clk 0:02:58.7]} 3... Nc6 {[%clk 0:02:59.9]}
4. g3 {[%clk 0:02:58.2]} 4... Nf6 {[%clk 0:03:00.2]} 5. Bg2 {[%clk 0:02:57]}
5... d5 {[%clk 0:03:00.2]} 6. Qe2 {[%clk 0:02:55.7]} 6... Be7 {[%clk 0:02:58.6]}
7. O-O {[%clk 0:02:55.5]} 7... b6 {[%clk 0:02:58.5]} 8. e5 {[%clk 0:02:55.2]}
8... Nd7 {[%clk 0:02:58.3]} 9. c4 {[%clk 0:02:56.1]} 9... d4 {[%clk 0:02:53.3]}
10. h4 {[%clk 0:02:55]} 10... Qc7 {[%clk 0:02:52.8]} 11. Bf4 {[%clk 0:02:53.3]}
11... Bb7 {[%clk 0:02:52.9]} 12. Nbd2 {[%clk 0:02:50.1]} 12... h6 {[%clk
0:02:52.7]} 13. h5 {[%clk 0:02:25.5]} 13... O-O-O {[%clk 0:02:52.2]} 14. a3
{[%clk 0:01:56.4]} 14... g5 {[%clk 0:02:50.3]} 15. hxg6 {[%clk 0:01:54]} 15...
fxg6 {[%clk 0:02:51.2]} 16. g4 {[%clk 0:01:42]} 16... h5 {[%clk 0:02:26]} 17. g5
{[%clk 0:01:37.9]} 17... Rdf8 {[%clk 0:02:26.1]} 18. Bh2 {[%clk 0:01:35.8]}
18... Rf5 {[%clk 0:02:25.8]} 19. Rae1 {[%clk 0:01:24.7]} 19... Bxg5 {[%clk
0:00:49.9]} 20. Nxg5 {[%clk 0:01:18.8]} 20... Rxg5 {[%clk 0:00:50.8]} 21. Ne4
{[%clk 0:01:14]} 21... Rxg2+ {[%clk 0:00:51.1]} 22. Kxg2 {[%clk 0:01:12.7]}
22... Ne7 {[%clk 0:00:52]} 23. f4 {[%clk 0:00:58.6]} 23... Nf5 {[%clk
0:00:46.4]} 24. Kg1 {[%clk 0:00:51.1]} 24... Ne3 {[%clk 0:00:21]} 25. Rf3 {[%clk
0:00:50.6]} 25... Kb8 {[%clk 0:00:16.3]} 26. Rxe3 {[%clk 0:00:49.2]} 26... dxe3
{[%clk 0:00:16.5]} 27. Qxe3 {[%clk 0:00:50.1]} 27... Qc6 {[%clk 0:00:08.7]} 28.
b4 {[%clk 0:00:44.8]} 28... Rd8 {[%clk 0:00:04.8]} 29. b5 {[%clk 0:00:44.2]}
29... Qc7 {[%clk 0:00:05]} 30. Bg3 {[%clk 0:00:40.6]} 30... Nf8 {[%clk
0:00:02.5]} 31. Bh4 {[%clk 0:00:40.4]} 31... Rd4 {[%clk 0:00:02.7]} 32. Bf6
{[%clk 0:00:33.7]} 32... Bxe4 {[%clk 0:00:02]} 33. dxe4 {[%clk 0:00:32.1]} 33...
Nd7 {[%clk 0:00:02.9]} 34. Be7 {[%clk 0:00:28.5]} 34... Qb7 {[%clk 0:00:02.1]}
35. Bd6+ {[%clk 0:00:26]} 35... Kc8 {[%clk 0:00:02.2]} 36. Qf3 {[%clk
0:00:24.6]} 36... Rxc4 {[%clk 0:00:02.2]} 37. Qg2 {[%clk 0:00:24]} 37... Rd4
{[%clk 0:00:01.6]} 38. Qxg6 {[%clk 0:00:23.8]} 1-0

[Event "*** Titled Tuesday Blitz"]
[Site "Chess.com"]
[Date "2021.03.02"]
[Round "2"]
[White "Skillcam"]
[Black "Vallek86"]
[Result "0-1"]
[WhiteElo "2579"]
[BlackElo "2342"]
[TimeControl "180+1"]
[EndTime "10:17:50 PST"]
[Termination "Vallek86 won on time"]

1. d4 {[%clk 0:03:00.9]} 1... c5 {[%clk 0:02:59.3]} 2. d5 {[%clk 0:03:01]} 2...
Nf6 {[%clk 0:02:59.3]} 3. Nc3 {[%clk 0:03:01.1]} 3... d6 {[%clk 0:02:59]} 4. e4
{[%clk 0:03:01.7]} 4... Nbd7 {[%clk 0:02:59.5]} 5. Nf3 {[%clk 0:02:58.5]} 5...
g6 {[%clk 0:02:58.9]} 6. Be2 {[%clk 0:02:57.1]} 6... Bg7 {[%clk 0:02:58.7]} 7.
O-O {[%clk 0:02:57.4]} 7... O-O {[%clk 0:02:58.9]} 8. Nd2 {[%clk 0:02:58]} 8...
Rb8 {[%clk 0:02:51.1]} 9. a4 {[%clk 0:02:58.2]} 9... a6 {[%clk 0:02:50.1]} 10.
f3 {[%clk 0:02:52.2]} 10... e6 {[%clk 0:02:26.1]} 11. dxe6 {[%clk 0:02:47.2]}
11... fxe6 {[%clk 0:02:25.7]} 12. Nb3 {[%clk 0:02:31.8]} 12... Qe7 {[%clk
0:02:05.6]} 13. Bf4 {[%clk 0:02:28.4]} 13... e5 {[%clk 0:01:21.7]} 14. Bc4+
{[%clk 0:02:27.1]} 14... Kh8 {[%clk 0:01:21.3]} 15. Bg5 {[%clk 0:02:27.6]} 15...
h6 {[%clk 0:01:15.6]} 16. Be3 {[%clk 0:01:13.1]} 16... Nb6 {[%clk 0:01:15.1]}
17. Be2 {[%clk 0:01:13.2]} 17... Be6 {[%clk 0:01:15]} 18. Nd2 {[%clk 0:01:06.2]}
18... Nc8 {[%clk 0:01:04.2]} 19. Nc4 {[%clk 0:01:04]} 19... Rd8 {[%clk
0:01:02.3]} 20. a5 {[%clk 0:01:02.2]} 20... Na7 {[%clk 0:01:01.6]} 21. Nb6
{[%clk 0:01:01.1]} 21... Nc6 {[%clk 0:01:00.4]} 22. Qd2 {[%clk 0:00:52.8]} 22...
Kh7 {[%clk 0:01:00]} 23. Rfd1 {[%clk 0:00:50.5]} 23... Nd4 {[%clk 0:00:59.7]}
24. Bf1 {[%clk 0:00:51]} 24... Rf8 {[%clk 0:00:44.5]} 25. Nca4 {[%clk
0:00:34.6]} 25... Rbd8 {[%clk 0:00:42.5]} 26. Rab1 {[%clk 0:00:30.3]} 26... Qf7
{[%clk 0:00:28.3]} 27. c3 {[%clk 0:00:27.7]} 27... Nb3 {[%clk 0:00:23.7]} 28.
Qf2 {[%clk 0:00:27.6]} 28... Nxa5 {[%clk 0:00:23.5]} 29. Rd2 {[%clk 0:00:19.1]}
29... Nb3 {[%clk 0:00:22.5]} 30. Rdd1 {[%clk 0:00:18.9]} 30... g5 {[%clk
0:00:18.9]} 31. h3 {[%clk 0:00:17.7]} 31... Qc7 {[%clk 0:00:16.6]} 32. Qc2
{[%clk 0:00:12.8]} 32... Kh8 {[%clk 0:00:16]} 33. c4 {[%clk 0:00:07.3]} 33...
Na5 {[%clk 0:00:16.1]} 0-1

[Event "*** Titled Tuesday Blitz"]
[Site "Chess.com"]
[Date "2021.03.02"]
[Round "2"]
[White "anon102030"]
[Black "Kaua18"]
[Result "1-0"]
[WhiteElo "2702"]
[BlackElo "2341"]
[TimeControl "180+1"]
[EndTime "10:17:51 PST"]
[Termination "anon102030 won on time"]

1. e4 {[%clk 0:03:00.9]} 1... c5 {[%clk 0:02:57]} 2. Nc3 {[%clk 0:03:00.6]} 2...
Nc6 {[%clk 0:02:55.5]} 3. g3 {[%clk 0:03:00.4]} 3... g6 {[%clk 0:02:49.7]} 4.
Bg2 {[%clk 0:03:01.3]} 4... Bg7 {[%clk 0:02:47.6]} 5. d3 {[%clk 0:03:02.2]} 5...
d6 {[%clk 0:02:45.9]} 6. Be3 {[%clk 0:03:01.6]} 6... e5 {[%clk 0:02:38.3]} 7. f4
{[%clk 0:03:00.2]} 7... Nge7 {[%clk 0:02:37.3]} 8. Nf3 {[%clk 0:02:59.9]} 8...
O-O {[%clk 0:02:34.6]} 9. fxe5 {[%clk 0:03:00.4]} 9... Nxe5 {[%clk 0:02:32.4]}
10. Nxe5 {[%clk 0:03:00.6]} 10... Bxe5 {[%clk 0:02:33.3]} 11. O-O {[%clk
0:03:00.4]} 11... Nc6 {[%clk 0:02:32.9]} 12. Qd2 {[%clk 0:03:00.4]} 12... Nd4
{[%clk 0:02:29.8]} 13. Rf2 {[%clk 0:02:59.1]} 13... Be6 {[%clk 0:02:25.9]} 14.
Raf1 {[%clk 0:02:57.7]} 14... b5 {[%clk 0:02:25.6]} 15. Bh6 {[%clk 0:02:51.3]}
15... Re8 {[%clk 0:02:24.1]} 16. Nd5 {[%clk 0:02:49.8]} 16... Bxd5 {[%clk
0:02:11.2]} 17. exd5 {[%clk 0:02:50.7]} 17... f6 {[%clk 0:02:01.7]} 18. c3
{[%clk 0:02:42.4]} 18... Nf5 {[%clk 0:02:01.2]} 19. Rxf5 {[%clk 0:02:32.4]}
19... gxf5 {[%clk 0:02:02.1]} 20. Rxf5 {[%clk 0:02:32.3]} 20... Qb6 {[%clk
0:01:37]} 21. Be3 {[%clk 0:01:58.6]} 21... b4 {[%clk 0:00:33.3]} 22. d4 {[%clk
0:01:49.7]} 22... bxc3 {[%clk 0:00:33]} 23. bxc3 {[%clk 0:01:50.4]} 23... cxd4
{[%clk 0:00:32.1]} 24. cxd4 {[%clk 0:01:49.2]} 24... Qb1+ {[%clk 0:00:20.4]} 25.
Rf1 {[%clk 0:01:47.1]} 25... Qg6 {[%clk 0:00:19.1]} 26. dxe5 {[%clk 0:01:45.6]}
26... fxe5 {[%clk 0:00:20]} 27. Qb4 {[%clk 0:01:39.8]} 27... Rf8 {[%clk
0:00:19.1]} 28. Be4 {[%clk 0:01:07.3]} 28... Rxf1+ {[%clk 0:00:17.7]} 29. Kxf1
{[%clk 0:01:08.2]} 29... Rf8+ {[%clk 0:00:17.9]} 30. Ke1 {[%clk 0:01:01.9]}
30... Qf7 {[%clk 0:00:09.3]} 31. Qxd6 {[%clk 0:00:48.9]} 31... Qf1+ {[%clk
0:00:09.1]} 32. Kd2 {[%clk 0:00:49.6]} 32... Qa1 {[%clk 0:00:08.9]} 33. Bxh7+
{[%clk 0:00:37.5]} 33... Kxh7 {[%clk 0:00:04.4]} 34. Qxf8 {[%clk 0:00:37]} 34...
Qxa2+ {[%clk 0:00:03]} 35. Ke1 {[%clk 0:00:37.3]} 35... Qb1+ {[%clk 0:00:02.5]}
36. Kf2 {[%clk 0:00:33.4]} 36... Qc2+ {[%clk 0:00:02.8]} 37. Kg1 {[%clk
0:00:31.6]} 37... Qd1+ {[%clk 0:00:01.8]} 38. Qf1 {[%clk 0:00:31.8]} 38... Qxd5
{[%clk 0:00:01.5]} 39. Bxa7 {[%clk 0:00:32]} 39... e4 {[%clk 0:00:01.9]} 40. Be3
{[%clk 0:00:32]} 40... Qe5 {[%clk 0:00:01.8]} 41. Qf4 {[%clk 0:00:31.9]} 41...
Qe6 {[%clk 0:00:02.2]} 42. Qg5 {[%clk 0:00:29.4]} 1-0

[Event "*** Titled Tuesday Blitz"]
[Site "Chess.com"]
[Date "2021.03.02"]
[Round "2"]
[White "JiiHart"]
[Black "Ghost_Pepper"]
[Result "0-1"]
[WhiteElo "2087"]
[BlackElo "2390"]
[TimeControl "180+1"]
[EndTime "10:17:51 PST"]
[Termination "Ghost_Pepper won on time"]

1. e4 {[%clk 0:03:00.9]} 1... c5 {[%clk 0:02:59.8]} 2. Nf3 {[%clk 0:03:00.8]}
2... d6 {[%clk 0:03:00.3]} 3. d4 {[%clk 0:03:01.4]} 3... cxd4 {[%clk 0:03:00.7]}
4. Nxd4 {[%clk 0:03:02.3]} 4... Nf6 {[%clk 0:03:01.3]} 5. Nc3 {[%clk 0:03:02.5]}
5... a6 {[%clk 0:03:01.9]} 6. Bg5 {[%clk 0:03:02.6]} 6... Nbd7 {[%clk
0:03:01.3]} 7. f4 {[%clk 0:03:02.3]} 7... Qc7 {[%clk 0:03:01.7]} 8. Qf3 {[%clk
0:03:00.8]} 8... h6 {[%clk 0:02:55.5]} 9. Bh4 {[%clk 0:02:58.5]} 9... g5 {[%clk
0:02:54.3]} 10. fxg5 {[%clk 0:02:54.1]} 10... Ne5 {[%clk 0:02:54]} 11. Qe2
{[%clk 0:02:32.4]} 11... Bg4 {[%clk 0:02:39.9]} 12. Qe3 {[%clk 0:02:22.4]} 12...
Nfd7 {[%clk 0:02:30.4]} 13. Nd5 {[%clk 0:01:56.8]} 13... Qa5+ {[%clk 0:02:25]}
14. b4 {[%clk 0:01:55.1]} 14... Qd8 {[%clk 0:02:23.1]} 15. h3 {[%clk 0:01:53.1]}
15... Be6 {[%clk 0:02:10.1]} 16. Nxe6 {[%clk 0:01:47.1]} 16... fxe6 {[%clk
0:02:11]} 17. Be2 {[%clk 0:01:38.1]} 17... hxg5 {[%clk 0:01:52.6]} 18. Qxg5
{[%clk 0:01:17.4]} 18... Nf7 {[%clk 0:01:28]} 19. Bh5 {[%clk 0:01:07.6]} 19...
exd5 {[%clk 0:01:02.4]} 20. O-O {[%clk 0:00:54.1]} 20... Nf6 {[%clk 0:00:54]}
21. Bxf7+ {[%clk 0:00:42.2]} 21... Kxf7 {[%clk 0:00:51.6]} 22. Qxd5+ {[%clk
0:00:29.1]} 22... Ke8 {[%clk 0:00:48.9]} 23. Qxb7 {[%clk 0:00:16.8]} 23... Rb8
{[%clk 0:00:44.2]} 24. Qc6+ {[%clk 0:00:14.9]} 24... Qd7 {[%clk 0:00:44.5]} 25.
Qc3 {[%clk 0:00:10.6]} 25... Bg7 {[%clk 0:00:41.8]} 26. e5 {[%clk 0:00:08.1]}
26... Rxh4 {[%clk 0:00:36.9]} 27. exf6 {[%clk 0:00:04.3]} 27... Bxf6 {[%clk
0:00:24.6]} 28. Qg3 {[%clk 0:00:04.5]} 28... Qa7+ {[%clk 0:00:18.5]} 29. Kh1
{[%clk 0:00:03.8]} 29... Qd4 {[%clk 0:00:14]} 30. Rad1 {[%clk 0:00:01.8]} 30...
Qe5 {[%clk 0:00:10.3]} 31. Qg8+ {[%clk 0:00:01.6]} 31... Kd7 {[%clk 0:00:10.8]}
32. Qxb8 {[%clk 0:00:01.5]} 32... Rxh3+ {[%clk 0:00:08.3]} 0-1

[Event "*** Titled Tuesday Blitz"]
[Site "Chess.com"]
[Date "2021.03.02"]
[Round "2"]
[White "chessdjw"]
[Black "NikolaN98"]
[Result "0-1"]
[WhiteElo "2743"]
[BlackElo "2523"]
[TimeControl "180+1"]
[EndTime "10:17:53 PST"]
[Termination "NikolaN98 won by checkmate"]

1. d4 {[%clk 0:03:00.9]} 1... e6 {[%clk 0:02:59.4]} 2. c4 {[%clk 0:03:01.6]}
2... f5 {[%clk 0:02:59.2]} 3. g3 {[%clk 0:03:01.7]} 3... Nf6 {[%clk 0:02:59.1]}
4. Bg2 {[%clk 0:03:02.1]} 4... Be7 {[%clk 0:02:58.7]} 5. Nf3 {[%clk 0:03:01]}
5... O-O {[%clk 0:02:58.4]} 6. O-O {[%clk 0:03:01.7]} 6... d6 {[%clk 0:02:58.2]}
7. b3 {[%clk 0:02:59.5]} 7... Ne4 {[%clk 0:02:51.7]} 8. Bb2 {[%clk 0:02:59.5]}
8... Qe8 {[%clk 0:02:51.1]} 9. Nbd2 {[%clk 0:02:57.3]} 9... Nxd2 {[%clk
0:02:45.2]} 10. Qxd2 {[%clk 0:02:56]} 10... Nd7 {[%clk 0:02:44.4]} 11. b4 {[%clk
0:02:28.4]} 11... Qh5 {[%clk 0:01:40.5]} 12. b5 {[%clk 0:02:18.5]} 12... g5
{[%clk 0:01:26.1]} 13. Qc2 {[%clk 0:01:37.6]} 13... Rf6 {[%clk 0:01:22.7]} 14.
c5 {[%clk 0:00:19.5]} 14... Rh6 {[%clk 0:00:30.1]} 15. cxd6 {[%clk 0:00:19.4]}
15... cxd6 {[%clk 0:00:26.7]} 16. h3 {[%clk 0:00:19.4]} 16... g4 {[%clk
0:00:24.7]} 17. Nh2 {[%clk 0:00:18.9]} 17... gxh3 {[%clk 0:00:17.7]} 18. Bf3
{[%clk 0:00:19.1]} 18... Qg6 {[%clk 0:00:17.8]} 19. Rac1 {[%clk 0:00:18]} 19...
Nf6 {[%clk 0:00:16.4]} 20. Rfe1 {[%clk 0:00:13.8]} 20... Bd7 {[%clk 0:00:15.5]}
21. Qd2 {[%clk 0:00:13]} 21... Ne4 {[%clk 0:00:14.6]} 22. Bxe4 {[%clk
0:00:12.2]} 22... fxe4 {[%clk 0:00:15.5]} 23. Rc7 {[%clk 0:00:12]} 23... Bg5
{[%clk 0:00:12.7]} 24. Qc3 {[%clk 0:00:11.7]} 24... Bxb5 {[%clk 0:00:09.1]} 25.
d5 {[%clk 0:00:11.6]} 25... e5 {[%clk 0:00:08.5]} 26. Rxb7 {[%clk 0:00:11.4]}
26... e3 {[%clk 0:00:07.9]} 27. Rxb5 {[%clk 0:00:10.1]} 27... exf2+ {[%clk
0:00:06.9]} 28. Kxf2 {[%clk 0:00:11]} 28... Rf8+ {[%clk 0:00:05.2]} 29. Kg1
{[%clk 0:00:10.8]} 29... Bd2 {[%clk 0:00:05.1]} 30. Qb3 {[%clk 0:00:08]} 30...
Bxe1 {[%clk 0:00:04.9]} 31. Nf1 {[%clk 0:00:06.3]} 31... h2+ {[%clk 0:00:04.1]}
32. Nxh2 {[%clk 0:00:05.7]} 32... Bxg3 {[%clk 0:00:03.1]} 33. Nf3 {[%clk
0:00:06.3]} 33... Bh2+ {[%clk 0:00:03.1]} 34. Kf1 {[%clk 0:00:05.2]} 34... Qg1#
{[%clk 0:00:03.6]} 0-1

[Event "*** Titled Tuesday Blitz"]
[Site "Chess.com"]
[Date "2021.03.02"]
[Round "2"]
[White "Goryachkina"]
[Black "SARGISMV"]
[Result "1/2-1/2"]
[WhiteElo "2669"]
[BlackElo "2469"]
[TimeControl "180+1"]
[EndTime "10:17:55 PST"]
[Termination "Game drawn by repetition"]

1. Nf3 {[%clk 0:03:00]} 1... Nf6 {[%clk 0:02:59.7]} 2. g3 {[%clk 0:02:59.9]}
2... b5 {[%clk 0:02:59.4]} 3. Bg2 {[%clk 0:02:56]} 3... Bb7 {[%clk 0:02:59.9]}
4. d4 {[%clk 0:02:50.2]} 4... e6 {[%clk 0:02:59.6]} 5. O-O {[%clk 0:02:49.8]}
5... c5 {[%clk 0:02:59.8]} 6. c3 {[%clk 0:02:39.2]} 6... d5 {[%clk 0:02:59.5]}
7. a4 {[%clk 0:02:29.2]} 7... b4 {[%clk 0:02:53.1]} 8. cxb4 {[%clk 0:02:24.4]}
8... cxb4 {[%clk 0:02:54]} 9. Bg5 {[%clk 0:02:17.5]} 9... Nbd7 {[%clk
0:02:53.5]} 10. a5 {[%clk 0:02:14.7]} 10... Ba6 {[%clk 0:02:47]} 11. Nbd2 {[%clk
0:02:02.3]} 11... h6 {[%clk 0:02:45.4]} 12. Bxf6 {[%clk 0:02:00.8]} 12... Nxf6
{[%clk 0:02:43.3]} 13. Ne5 {[%clk 0:01:56.2]} 13... Bd6 {[%clk 0:02:23.9]} 14.
Qa4+ {[%clk 0:01:37.4]} 14... Kf8 {[%clk 0:02:22.1]} 15. Nd3 {[%clk 0:01:21.4]}
15... Bxd3 {[%clk 0:02:07.7]} 16. exd3 {[%clk 0:01:22.3]} 16... Qd7 {[%clk
0:02:08.2]} 17. Nb3 {[%clk 0:01:13.4]} 17... Qxa4 {[%clk 0:01:52.4]} 18. Rxa4
{[%clk 0:01:14.3]} 18... Rc8 {[%clk 0:01:52.7]} 19. Nc5 {[%clk 0:01:05]} 19...
Bxc5 {[%clk 0:01:12.3]} 20. Rc1 {[%clk 0:01:03.9]} 20... Ke7 {[%clk 0:01:02.8]}
21. dxc5 {[%clk 0:01:00.9]} 21... Rb8 {[%clk 0:00:59.7]} 22. d4 {[%clk
0:00:56.1]} 22... Rhc8 {[%clk 0:00:50.8]} 23. f4 {[%clk 0:00:51.7]} 23... g5
{[%clk 0:00:50.2]} 24. Kf2 {[%clk 0:00:43.4]} 24... Ng4+ {[%clk 0:00:37.7]} 25.
Ke2 {[%clk 0:00:41.4]} 25... gxf4 {[%clk 0:00:23.8]} 26. gxf4 {[%clk 0:00:42.3]}
26... Nxh2 {[%clk 0:00:24.2]} 27. Rh1 {[%clk 0:00:40.1]} 27... Ng4 {[%clk
0:00:22.8]} 28. Bf3 {[%clk 0:00:40.2]} 28... Rg8 {[%clk 0:00:20.8]} 29. Rh4
{[%clk 0:00:32.8]} 29... Nf6 {[%clk 0:00:11.2]} 30. Rxh6 {[%clk 0:00:31.8]}
30... Rg7 {[%clk 0:00:10.4]} 31. Ra1 {[%clk 0:00:25.1]} 31... b3 {[%clk
0:00:08.7]} 32. Rc1 {[%clk 0:00:18.9]} 32... Rgg8 {[%clk 0:00:06.5]} 33. Rhh1
{[%clk 0:00:12.8]} 33... Rb4 {[%clk 0:00:07]} 34. Ke3 {[%clk 0:00:10.5]} 34...
Rg3 {[%clk 0:00:07.5]} 35. Kf2 {[%clk 0:00:09.1]} 35... Rg8 {[%clk 0:00:06.8]}
36. Ke3 {[%clk 0:00:09.5]} 36... Rg3 {[%clk 0:00:06.8]} 37. Kf2 {[%clk 0:00:10]}
37... Rg8 {[%clk 0:00:07.4]} 38. Ke3 {[%clk 0:00:10.4]} 1/2-1/2